bitfinex-derivatives/quotes_SOLF0:USTF0_20250929
["timestamp","ask_amount","ask_price","bid_price","bid_amount"]
[1759137139582,4.08,209.05,209.0,136.30692148]
[1759137139778,4.08,209.05,209.01,7.38]
[1759137139971,4.08,209.05,209.0,132.00212148]
[1759137140378,4.08,209.05,209.01,7.38]
[1759137140583,4.08,209.05,209.0,132.00212148]
[1759137140976,4.08,209.05,209.01,7.38]
[1759137141278,4.08,209.05,209.0,132.00212148]
[1759137141582,4.08,209.05,209.01,7.38]
[1759137141977,4.08,209.05,209.0,132.00212148]
[1759137142984,4.08,209.05,209.01,7.38]
[1759137144085,4.08,209.05,209.01,7.37]
[1759137144979,4.08,209.05,209.0,132.00212148]
[1759137145387,4.08,209.05,209.01,7.37]
[1759137146280,8.384,209.05,209.0,132.00212148]
[1759137146485,1.4048904,209.06,209.0,139.37212148]
[1759137146685,4.07,209.05,209.0,139.37212148]
[1759137146880,4.07,209.07,209.01,8.7748904]
[1759137147085,4.07,209.1,209.01,8.7748904]
[1759137147278,7.41802564,209.1,209.01,8.7748904]
[1759137147481,4.07,209.09,209.01,8.7748904]
[1759137148286,4.07,209.09,209.03,1.4048904]
[1759137148490,4.07,209.1,209.04,7.37]
[1759137149188,3.34767932,209.11,209.04,7.37]
[1759137149391,8.3736,209.07,209.04,7.37]
[1759137151494,8.3736,209.07,209.03,1.4048904]
[1759137151792,8.3736,209.07,209.04,7.37]
[1759137151989,8.3736,209.07,209.03,1.4048904]
[1759137152290,8.3736,209.07,209.04,7.37]
[1759137152491,8.3736,209.07,209.03,1.4048904]
[1759137152691,8.3736,209.07,209.04,7.37]
[1759137159200,4.3037,209.06,209.04,7.37]
[1759137164002,4.3037,209.06,209.02,1.4048904]
[1759137164199,4.3037,209.06,209.03,7.37]
[1759137164800,4.3037,209.06,209.02,1.4048904]
[1759137165001,4.3037,209.06,209.03,7.37]
[1759137165399,4.3037,209.06,209.02,1.4048904]
[1759137165801,4.3037,209.06,209.03,7.37]
[1759137166201,4.3037,209.06,209.02,1.4048904]
[1759137166503,4.3037,209.06,209.03,7.37]
[1759137166703,4.3037,209.06,209.02,1.4048904]
[1759137167007,4.3037,209.06,209.03,7.37]
[1759137167397,4.3037,209.06,209.02,1.4048904]
[1759137167706,4.3037,209.06,209.03,7.37]
[1759137167902,4.3037,209.06,209.02,1.4048904]
[1759137168407,4.3037,209.06,209.03,7.37]
[1759137168607,8.3737,209.06,209.02,1.4048904]
[1759137169109,8.3737,209.06,209.03,7.37]
[1759137169706,4.07,209.05,209.03,7.37]
[1759137172311,4.07,209.09,209.01,7.37]
[1759137172508,3.36250217,209.08,209.01,7.37]
[1759137172703,4.07,209.06,209.01,7.37]
[1759137172903,68.3404904,209.1,209.01,7.37]
[1759137173100,4.07,209.08,209.01,7.37]
[1759137173304,4.07,209.06,209.01,7.37]
[1759137173509,68.3404904,209.1,209.01,7.37]
[1759137173704,8.3742,209.04,209.01,7.37]
[1759137178313,4.3042,209.04,209.01,7.37]
[1759137178509,8.3845,209.03,209.01,7.37]
[1759137178709,4.08,209.02,209.01,7.37]
[1759137180005,4.3045,209.03,209.01,7.37]
[1759137182218,4.3045,209.03,208.99,7.29]
[1759137182419,4.3045,209.03,208.97,4.3054]
[1759137182619,4.3045,209.03,208.98,7.29]
[1759137183322,4.3045,209.03,208.98,14.11005856]
[1759137183518,4.3045,209.03,208.97,4.3054]
[1759137183718,4.3045,209.03,208.98,7.29]
[1759137185717,4.3045,209.03,208.98,11.5953]
[1759137185922,4.3045,209.03,208.99,7.29]
[1759137186218,4.3045,209.03,208.98,4.3053]
[1759137187319,4.3045,209.03,208.99,7.29]
[1759137187823,4.3045,209.03,208.98,4.3053]
[1759137188018,4.3045,209.03,208.99,7.29]
[1759137188215,4.3045,209.03,208.98,4.3053]
[1759137188414,4.3045,209.03,208.98,18.66217337]
[1759137188610,4.3045,209.03,208.99,7.29]
[1759137189216,4.3045,209.03,208.98,4.3053]
[1759137189422,8.3845,209.03,208.98,4.3053]
[1759137189620,4.3045,209.02,208.97,7.29]
[1759137190823,8.3845,209.02,208.97,7.29]
[1759137191218,8.3845,209.02,208.96,152.71502014]
[1759137191532,4.08,209.0,208.97,7.29]
[1759137192222,4.3051,209.0,208.97,7.29]
[1759137192418,4.08,208.99,208.97,7.29]
[1759137194926,4.3051,209.0,208.97,7.29]
[1759137195127,4.08,208.99,208.97,7.29]
[1759137195318,4.3051,209.0,208.97,7.29]
[1759137195623,4.08,208.99,208.97,7.29]
[1759137196728,4.08,208.98,208.94,7.29]
[1759137196920,4.08,208.98,208.92,7.29]
[1759137197719,8.3856,208.97,208.93,7.29]
[1759137197924,8.3856,208.97,208.89,53.79413054]
[1759137198124,8.3856,208.97,208.9,7.29]
[1759137198329,4.3059,208.95,208.89,18.98027821]
[1759137198527,4.08,208.94,208.89,18.98027821]
[1759137199028,4.08,208.94,208.9,7.5]
[1759137199329,4.08,208.94,208.89,18.98027821]
[1759137199631,4.11,208.94,208.89,14.67317821]
[1759137199821,4.11,208.94,208.91,7.5]
[1759137199822,4.11,208.93,208.91,7.5]
[1759137200022,66.9758,208.97,208.85,7.5]
[1759137200222,8.4167,208.92,208.85,7.5]
[1759137200422,4.11,208.92,208.85,7.5]
[1759137200819,4.3071,208.9,208.85,7.5]
[1759137201024,4.3071,208.9,208.83,7.5]
[1759137203031,4.3071,208.9,208.84,7.5]
[1759137207237,66.9924,208.92,208.84,7.5]
[1759137207533,4.06,208.91,208.84,7.5]
[1759137207926,8.3677,208.87,208.81,21.81846194]
[1759137208132,8.3677,208.87,208.81,7.74]
[1759137208939,8.3679,208.86,208.8,7.74]
[1759137211236,66.9948,208.91,208.78,14.23703424]
[1759137211237,4.3081,208.85,208.78,14.23703424]
[1759137211540,67.0014,208.89,208.77,7.74]
[1759137211736,4.06,208.83,208.77,7.74]
[1759137212238,67.008,208.87,208.77,7.74]
[1759137212239,67.0159,208.85,208.77,7.74]
[1759137212539,183.0159,208.85,208.77,7.74]
[1759137212737,71.0774,208.84,208.77,7.74]
[1759137212933,67.0242,208.82,208.71,7.74]
[1759137213341,8.3702,208.75,208.7,7.74]
[1759137213547,8.3702,208.75,208.68,7.74]
[1759137214241,8.3702,208.75,208.68,21.8775056]
[1759137214448,8.3702,208.75,208.69,7.74]
[1759137214840,4.06,208.73,208.69,7.74]
[1759137215046,69.05105233,208.78,208.69,7.74]
[1759137215245,4.06,208.77,208.69,7.74]
[1759137216140,185.07105233,208.78,208.69,7.74]
[1759137216643,4.06,208.73,208.66,14.20786772]
[1759137216847,4.06,208.73,208.67,7.74]
[1759137217543,8.3707,208.73,208.67,7.74]
[1759137218243,4.06,208.79,208.67,7.74]
[1759137218450,4.06,208.83,208.69,7.74]
[1759137218649,9.48,208.83,208.69,7.74]
[1759137218848,4.3092,208.8,208.71,7.74]
[1759137219645,4.3092,208.8,208.71,12.0507]
[1759137219851,4.3092,208.8,208.72,7.74]
[1759137220250,4.3094,208.79,208.72,7.74]
[1759137220550,4.06,208.81,208.72,7.74]
[1759137221348,4.3096,208.78,208.72,7.74]
[1759137222351,4.3091,208.8,208.72,7.74]
[1759137222752,4.3091,208.8,208.73,7.74]
[1759137224853,4.3094,208.79,208.73,7.74]
[1759137225452,4.3096,208.78,208.73,7.74]
[1759137225655,4.3096,208.78,208.72,7.74]
[1759137226651,4.3098,208.77,208.68,4.3115]
[1759137226849,4.3098,208.77,208.69,7.74]
[1759137227352,4.31,208.76,208.69,4.3111]
[1759137227553,4.31,208.76,208.67,2.01385233]
[1759137227554,4.06,208.77,208.7,7.74]
[1759137228549,4.3102,208.75,208.7,7.74]
[1759137228752,4.3102,208.75,208.68,7.74]
[1759137232354,8.3702,208.75,208.68,7.74]
[1759137232749,4.3097,208.77,208.69,2.01385233]
[1759137232946,4.3097,208.77,208.7,7.74]
[1759137233642,4.3097,208.77,208.7,4.3111]
[1759137233842,4.3097,208.77,208.71,7.74]
[1759137237654,8.3997,208.77,208.71,7.74]
[1759137240545,4.31,208.76,208.71,7.74]
[1759137240747,8.4,208.76,208.7,11.6411]
[1759137241253,4.09,208.74,208.68,4.3114]
[1759137241551,4.09,208.74,208.68,11.6414]
[1759137241758,4.3102,208.75,208.7,7.33]
[1759137242554,4.3102,208.75,208.69,4.3112]
[1759137242957,4.3102,208.75,208.7,7.33]
[1759137243357,4.3102,208.75,208.69,4.3112]
[1759137243962,4.3102,208.75,208.7,7.33]
[1759137244162,4.3102,208.75,208.69,4.3112]
[1759137244860,4.3102,208.75,208.7,7.33]
[1759137244861,8.4002,208.75,208.7,7.33]
[1759137245066,8.4002,208.75,208.69,4.3112]
[1759137245267,8.4002,208.75,208.7,7.33]
[1759137245764,4.3104,208.74,208.68,7.33]
[1759137246063,4.09,208.75,208.68,7.33]
[1759137247664,4.3106,208.73,208.67,6.71141229]
[1759137247860,4.3106,208.73,208.68,7.33]
[1759137248063,4.3106,208.73,208.67,6.71141229]
[1759137248256,8.4006,208.73,208.67,5.41920277]
[1759137248460,4.09,208.71,208.68,7.33]
[1759137249167,4.09,208.71,208.66,14.03919648]
[1759137249459,4.09,208.71,208.68,7.33]
[1759137249864,4.3108,208.72,208.68,7.33]
[1759137250063,4.09,208.71,208.68,7.33]
[1759137250263,4.3108,208.72,208.68,7.33]
[1759137250669,4.09,208.71,208.65,4.312]
[1759137250969,4.09,208.71,208.66,7.33]
[1759137251170,8.4008,208.72,208.66,21.34816121]
[1759137253970,4.09,208.7,208.64,7.29]
[1759137254970,8.4011,208.7,208.64,7.29]
[1759137255869,4.09,208.69,208.64,7.29]
[1759137256065,4.3113,208.69,208.64,7.29]
[1759137256271,4.09,208.68,208.64,7.29]
[1759137256469,4.09,208.68,208.62,1.22856354]
[1759137256672,8.4013,208.69,208.63,7.29]
[1759137258177,4.09,208.69,208.63,7.29]
[1759137260172,8.4014,208.69,208.63,7.29]
[1759137262975,5.60310952,208.71,208.63,4.3124]
[1759137263173,4.3109,208.71,208.64,7.29]
[1759137264980,5.38220952,208.73,208.64,7.29]
[1759137264981,4.3112,208.7,208.64,7.29]
[1759137267181,1.29220952,208.76,208.68,7.4]
[1759137267374,4.09,208.75,208.68,7.4]
[1759137268289,4.3108,208.72,208.66,7.4]
[1759137272798,4.3103,208.74,208.67,7.4]
[1759137274505,4.3106,208.73,208.67,7.4]
[1759137275103,4.09,208.74,208.67,7.4]
[1759137275705,8.4004,208.74,208.67,7.4]
[1759137279202,4.09,208.72,208.67,7.4]
[1759137279401,4.09,208.72,208.66,13.00400952]
[1759137279606,4.09,208.72,208.67,7.4]
[1759137280599,4.09,208.72,208.66,13.00400952]
[1759137280800,8.4008,208.72,208.66,8.69220952]
[1759137283309,4.09,208.73,208.64,7.4]
[1759137283496,1.29220952,208.74,208.64,7.4]
[1759137283698,4.09,208.73,208.64,7.4]
[1759137284006,1.29220952,208.74,208.64,7.4]
[1759137284808,4.09,208.71,208.64,7.4]
[1759137285107,1.29220952,208.72,208.64,7.4]
[1759137285312,3.39502715,208.74,208.64,7.4]
[1759137285604,4.3114,208.69,208.64,7.4]
[1759137285810,4.09,208.68,208.64,7.4]
[1759137286205,4.3114,208.69,208.62,16.66667987]
[1759137286511,4.3114,208.69,208.63,7.4]
[1759137287406,4.3114,208.69,208.65,7.4]
[1759137287705,4.3114,208.69,208.64,1.29220952]
[1759137288107,4.3114,208.69,208.64,7.4]
[1759137288302,4.3114,208.69,208.63,5.60460952]
[1759137288997,4.3114,208.69,208.64,7.4]
[1759137289204,4.3114,208.69,208.63,5.60460952]
[1759137289508,4.3114,208.69,208.64,7.4]
[1759137290007,4.3114,208.69,208.63,5.60460952]
[1759137290407,4.3114,208.69,208.64,7.4]
[1759137290604,4.3114,208.69,208.63,4.3124]
[1759137290802,4.3114,208.69,208.64,7.4]
[1759137291808,4.3109,208.71,208.64,7.4]
[1759137292202,4.3109,208.71,208.65,7.4]
[1759137292401,4.3112,208.7,208.64,4.3122]
[1759137293403,4.3112,208.7,208.65,7.4]
[1759137293604,4.3112,208.7,208.64,4.3122]
[1759137293910,4.3112,208.7,208.65,7.51]
[1759137294313,4.3112,208.7,208.64,4.3122]
[1759137294902,4.3112,208.7,208.65,7.51]
[1759137295110,4.3112,208.7,208.64,4.3122]
[1759137295312,4.3112,208.7,208.65,7.51]
[1759137295515,4.3112,208.7,208.64,4.3122]
[1759137296215,8.3912,208.7,208.64,11.8222]
[1759137296908,4.3113,208.69,208.64,11.8222]
[1759137297211,4.08,208.68,208.65,7.51]
[1759137298319,4.08,208.68,208.64,4.3122]
[1759137298518,4.08,208.68,208.65,7.51]
[1759137299016,4.08,208.68,208.64,4.3122]
[1759137299321,4.08,208.68,208.65,7.51]
[1759137300518,4.08,208.68,208.62,27.19707035]
[1759137301413,4.08,208.68,208.63,4.3124]
[1759137301920,4.08,208.68,208.64,7.51]
[1759137302219,4.08,208.68,208.63,4.3124]
[1759137303115,4.08,208.68,208.64,7.51]
[1759137303520,4.08,208.68,208.63,4.3124]
[1759137304115,4.08,208.68,208.64,7.51]
[1759137304419,4.08,208.68,208.63,11.8224]
[1759137304912,4.3113,208.69,208.63,11.8224]
[1759137305117,4.3113,208.69,208.63,4.3124]
[1759137305313,4.3113,208.69,208.6,386.28003407]
[1759137305314,2.02051424,208.7,208.6,393.79003407]
[1759137305515,69.09241424,208.67,208.56,8.0354841]
[1759137305816,67.0848,208.63,208.53,15.5454841]
[1759137306014,67.0848,208.63,208.53,7.51]
[1759137306319,2.02051424,208.64,208.53,7.51]
[1759137306508,4.08,208.63,208.53,7.51]
[1759137306708,4.3135,208.59,208.53,7.51]
[1759137307111,4.08,208.6,208.53,7.51]
[1759137307908,4.08,208.63,208.54,7.51]
[1759137308109,4.08,208.67,208.56,7.51]
[1759137308310,4.08,208.67,208.58,7.51]
[1759137309719,8.3917,208.67,208.61,7.51]
[1759137310927,4.3117,208.67,208.61,7.51]
[1759137311923,4.3117,208.67,208.61,11.8228]
[1759137312321,4.3114,208.69,208.6,2.02051424]
[1759137312523,4.3114,208.69,208.61,7.51]
[1759137313823,4.3114,208.69,208.63,7.62]
[1759137314123,4.3116,208.68,208.62,11.9326]
[1759137314323,4.05,208.69,208.62,7.62]
[1759137315721,4.3118,208.67,208.61,7.62]
[1759137316620,4.05,208.66,208.6,120.6531]
[1759137316825,4.05,208.66,208.58,11.9335]
[1759137317523,4.3124,208.64,208.58,11.9335]
[1759137317724,8.3624,208.64,208.58,7.62]
[1759137317929,4.05,208.62,208.58,7.62]
[1759137318224,67.0686,208.68,208.58,7.62]
[1759137318225,71.1248,208.66,208.58,7.62]
[1759137318420,4.05,208.65,208.58,7.62]
[1759137318627,67.0748,208.66,208.58,7.62]
[1759137319023,4.05,208.65,208.58,7.62]
[1759137319222,8.3631,208.61,208.58,7.62]
[1759137321226,8.3631,208.61,208.54,7.62]
[1759137322330,4.3133,208.6,208.54,7.62]
[1759137322526,4.05,208.66,208.54,7.62]
[1759137323530,4.3128,208.62,208.55,7.62]
[1759137324431,4.3124,208.64,208.56,7.98]
[1759137325125,8.3924,208.64,208.56,7.98]
[1759137325734,8.3924,208.64,208.57,7.98]
[1759137328228,4.3126,208.63,208.57,7.98]
[1759137329621,4.08,208.61,208.55,4.3141]
[1759137330133,4.08,208.61,208.56,7.98]
[1759137330325,4.08,208.61,208.55,4.3141]
[1759137330529,4.08,208.61,208.54,7.98]
[1759137331633,4.08,208.61,208.54,4.3143]
[1759137331833,4.08,208.61,208.55,7.98]
[1759137332033,8.393,208.61,208.55,7.98]
[1759137332234,4.08,208.61,208.55,7.98]
[1759137332637,4.3132,208.6,208.55,7.98]
[1759137332832,67.0822,208.64,208.55,7.98]
[1759137333538,4.3135,208.59,208.55,7.98]
[1759137333740,4.08,208.58,208.55,7.98]
[1759137333936,4.08,208.62,208.55,7.98]
[1759137334440,67.0843,208.63,208.55,7.98]
[1759137334640,8.3937,208.58,208.55,7.98]
[1759137335038,4.08,208.57,208.55,7.98]
[1759137335439,4.08,208.57,208.51,182.66233028]
[1759137335735,4.08,208.57,208.52,7.98]
[1759137336240,4.3139,208.57,208.5,7.98]
[1759137336734,67.091,208.61,208.5,7.98]
[1759137336940,4.08,208.57,208.5,7.98]
[1759137337135,3.48227467,208.58,208.5,7.98]
[1759137337337,4.08,208.57,208.5,7.98]
[1759137337536,69.11891424,208.59,208.5,7.98]
[1759137337732,3.54699043,208.58,208.5,7.98]
[1759137338040,4.08,208.56,208.5,7.98]
[1759137338743,8.394,208.56,208.5,7.98]
[1759137339037,86.36,208.62,208.5,7.98]
[1759137339038,4.08,208.62,208.5,7.98]
[1759137339342,8.3937,208.58,208.5,7.98]
[1759137339542,4.08,208.58,208.5,7.98]
[1759137340043,4.3133,208.6,208.49,7.98]
[1759137340236,4.08,208.62,208.49,7.98]
[1759137340436,4.08,208.61,208.49,7.98]
[1759137340941,7.60906552,208.61,208.49,7.98]
[1759137341240,4.08,208.61,208.49,7.98]
[1759137341632,4.3135,208.59,208.51,4.3149]
[1759137341837,4.3135,208.59,208.52,7.98]
[1759137342340,4.3137,208.58,208.52,7.98]
[1759137343540,4.3132,208.6,208.52,7.98]
[1759137344241,4.08,208.64,208.52,7.98]
[1759137344842,4.3128,208.62,208.56,7.98]
[1759137347846,8.3924,208.64,208.56,7.98]
[1759137348246,4.3126,208.63,208.56,7.98]
[1759137352150,8.3929,208.62,208.56,7.98]
[1759137355956,4.3131,208.61,208.53,4.3145]
[1759137356159,67.0851,208.63,208.54,7.27]
[1759137356456,4.09,208.61,208.54,7.27]
[1759137356655,4.09,208.6,208.54,7.27]
[1759137356957,4.09,208.61,208.5,7.27]
[1759137357159,67.0892,208.62,208.5,7.27]
[1759137357353,3.55668497,208.61,208.5,7.27]
[1759137357650,4.3139,208.57,208.5,7.27]
[1759137358753,4.3139,208.57,208.5,4.315]
[1759137358959,4.09,208.58,208.51,7.27]
[1759137360761,4.09,208.58,208.52,7.27]
[1759137361260,4.3134,208.59,208.52,7.27]
[1759137361860,8.403,208.61,208.55,7.27]
[1759137362359,4.313,208.61,208.55,7.27]
[1759137362554,4.09,208.64,208.55,7.27]
[1759137362555,4.3126,208.63,208.55,11.584]
[1759137362854,4.3126,208.63,208.56,7.27]
[1759137363761,4.3126,208.63,208.56,11.5838]
[1759137363962,4.3126,208.63,208.57,7.27]
[1759137365654,4.3126,208.63,208.57,11.5836]
[1759137370771,4.3128,208.62,208.56,7.27]
[1759137372270,4.09,208.6,208.56,7.27]
[1759137372471,4.09,208.6,208.54,5.6081276]
[1759137372672,4.09,208.6,208.54,12.8781276]
[1759137372870,4.09,208.6,208.54,7.27]
[1759137373062,1.2938276,208.6,208.54,7.27]
[1759137373466,4.09,208.59,208.54,7.27]
[1759137373870,1.2938276,208.6,208.54,7.27]
[1759137374072,4.09,208.59,208.54,7.27]
[1759137374379,4.3134,208.59,208.52,8.03]
[1759137375075,4.3137,208.58,208.52,8.03]
[1759137375277,5.3838276,208.6,208.52,9.3238276]
[1759137375675,5.3838276,208.6,208.52,8.03]
[1759137376580,4.3139,208.57,208.52,8.03]
[1759137377073,4.3139,208.57,208.51,5.6087276]
[1759137377273,4.3139,208.57,208.52,8.03]
[1759137377979,4.3139,208.57,208.51,5.6087276]
[1759137378173,4.3139,208.57,208.52,8.03]
[1759137378880,4.3139,208.57,208.51,5.6087276]
[1759137379180,4.3139,208.57,208.52,8.03]
[1759137379380,4.3139,208.57,208.51,5.6087276]
[1759137379780,4.09,208.56,208.51,5.6087276]
[1759137380079,4.3139,208.57,208.51,5.6087276]
[1759137380281,8.4039,208.57,208.51,5.6087276]
[1759137380583,4.09,208.55,208.5,8.03]
[1759137381083,4.09,208.53,208.5,8.03]
[1759137381581,1.2938276,208.56,208.5,8.03]
[1759137381781,3.56389928,208.55,208.5,8.03]
[1759137381977,4.09,208.55,208.47,4.3157]
[1759137382480,5.3838276,208.55,208.47,4.3157]
[1759137382779,4.3147,208.53,208.47,19.03138757]
[1759137383183,8.4047,208.53,208.47,19.03138757]
[1759137383779,4.09,208.53,208.48,4.3154]
[1759137384082,4.09,208.57,208.49,7.66]
[1759137384284,3.56311072,208.56,208.51,4.3148]
[1759137384483,8.4038,208.57,208.51,4.3148]
[1759137384679,1.2938276,208.6,208.51,7.66]
[1759137384980,3.56286232,208.59,208.53,7.66]
[1759137385183,4.09,208.61,208.53,1.2938276]
[1759137385184,3.56286232,208.58,208.53,1.2938276]
[1759137385384,4.09,208.61,208.53,1.2938276]
[1759137385584,1.2938276,208.62,208.53,1.2938276]
[1759137385585,4.3134,208.59,208.53,5.6083276]
[1759137385782,3.56248507,208.58,208.54,7.66]
[1759137386084,4.3134,208.59,208.54,7.66]
[1759137386282,4.3134,208.59,208.53,1.2938276]
[1759137386481,8.403,208.61,208.54,11.9742]
[1759137386784,3.56251044,208.6,208.54,11.9742]
[1759137386978,3.56251044,208.59,208.54,4.3142]
[1759137387183,8.403,208.61,208.55,7.66]
[1759137387384,3.56240531,208.6,208.55,7.66]
[1759137387584,4.313,208.61,208.55,7.66]
[1759137387785,3.56240169,208.6,208.54,4.3142]
[1759137387982,4.313,208.61,208.55,7.66]
[1759137388183,3.56253037,208.6,208.55,7.66]
[1759137388486,4.313,208.61,208.55,7.66]
[1759137388682,3.5626087,208.6,208.54,4.3142]
[1759137388986,4.313,208.61,208.55,7.66]
[1759137389186,3.56273523,208.6,208.55,7.66]
[1759137389386,4.313,208.61,208.55,7.66]
[1759137389583,3.56260522,208.6,208.55,7.66]
[1759137389887,4.313,208.61,208.56,7.66]
[1759137390089,3.56255618,208.6,208.55,4.3141]
[1759137390387,4.313,208.61,208.56,7.66]
[1759137390690,3.5625735,208.6,208.55,5.6079276]
[1759137390990,4.313,208.61,208.55,5.6079276]
[1759137391282,7.87590005,208.6,208.56,7.66]
[1759137391586,4.09,208.59,208.56,7.66]
[1759137391789,4.3132,208.6,208.56,7.66]
[1759137391982,8.4032,208.6,208.56,7.66]
[1759137392187,8.4032,208.6,208.55,1.2938276]
[1759137392591,4.09,208.6,208.56,7.66]
[1759137392891,4.09,208.6,208.55,5.6078276]
[1759137393091,4.09,208.6,208.56,7.66]
[1759137393287,4.09,208.6,208.55,5.6078276]
[1759137393882,5.3838276,208.64,208.56,11.9738]
[1759137394086,3.56274835,208.63,208.57,7.66]
[1759137394287,4.09,208.61,208.55,1.2938276]
[1759137394591,3.56274835,208.6,208.56,7.66]
[1759137394789,4.09,208.61,208.55,5.6079276]
[1759137394989,3.5628287,208.6,208.55,5.6079276]
[1759137395290,4.09,208.61,208.55,5.6079276]
[1759137396191,4.09,208.61,208.56,7.66]
[1759137396489,4.09,208.61,208.55,5.6079276]
[1759137396689,4.09,208.61,208.56,7.66]
[1759137396990,4.09,208.61,208.55,5.6079276]
[1759137397185,4.09,208.61,208.56,7.66]
[1759137397390,4.09,208.61,208.55,5.6079276]
[1759137397784,4.09,208.61,208.56,7.66]
[1759137397979,8.403,208.61,208.55,5.6079276]
[1759137398185,8.403,208.61,208.56,7.66]
[1759137398387,4.09,208.61,208.55,8.9538276]
[1759137398588,4.09,208.58,208.55,7.66]
[1759137402001,1.2938276,208.6,208.51,4.3149]
[1759137402299,4.09,208.58,208.5,8.9538276]
[1759137403408,4.314,208.56,208.5,8.9538276]
[1759137408499,4.314,208.56,208.5,5.6088276]
[1759137408798,4.3136,208.58,208.53,7.66]
[1759137409201,4.3132,208.6,208.55,7.66]
[1759137409605,4.09,208.64,208.57,7.66]
[1759137409798,3.57004167,208.63,208.58,1.2938276]
[1759137410105,4.09,208.63,208.59,7.66]
[1759137410606,4.3124,208.64,208.57,5.6075276]
[1759137410906,4.3124,208.64,208.58,7.66]
[1759137412801,3.51728066,208.63,208.58,7.66]
[1759137413000,8.4024,208.64,208.58,7.66]
[1759137413300,4.3127,208.63,208.57,11.9737]
[1759137418508,4.313,208.62,208.57,7.66]
[1759137418708,4.08,208.64,208.57,7.91]
[1759137418905,3.51681841,208.63,208.57,7.91]
[1759137419105,4.08,208.64,208.57,7.91]
[1759137419507,8.3925,208.64,208.57,7.91]
[1759137420209,8.3925,208.64,208.57,9.2038276]
[1759137420704,8.3925,208.64,208.57,13.5175276]
[1759137421007,7.82925176,208.63,208.57,7.91]
[1759137421210,4.3127,208.63,208.57,7.91]
[1759137421611,4.08,208.64,208.57,7.91]
[1759137421810,3.51641882,208.63,208.57,7.91]
[1759137422005,4.08,208.64,208.57,7.91]
[1759137422204,3.51628067,208.63,208.57,7.91]
[1759137422406,8.3925,208.64,208.57,12.2237]
[1759137423712,4.08,208.64,208.58,12.2235]
[1759137424009,4.08,208.67,208.59,7.91]
[1759137424205,116.72,208.68,208.61,7.91]
[1759137424399,116.72,208.68,208.62,1.2938276]
[1759137424600,4.08,208.74,208.65,7.91]
[1759137424806,7.59314616,208.72,208.65,7.91]
[1759137425003,4.08,208.72,208.65,7.91]
[1759137425609,8.3908,208.72,208.67,7.91]
[1759137425810,8.3908,208.72,208.66,9.2038276]
[1759137426310,4.3111,208.71,208.66,7.91]
[1759137426513,4.08,208.7,208.66,7.91]
[1759137427408,4.3111,208.71,208.66,1.2938276]
[1759137427810,353.2706,208.73,208.67,7.91]